Cogmind - Beta 9.6 @@@ ROGUE MODE // 2020.09.06 @ 02:38:56 Player: Finestep Result: Self-destructed Performance ------------- Evolutions (4) 2000 Regions Visited (16) 3200 Robots Destroyed (183) 915 Value Destroyed (5949) 5949 Prototype IDs (238) 4760 Alien Tech Used (0) 0 Bonus (6351) 6351 TOTAL SCORE: 23175 Bonus ------- High Alert Combat Kills 192 Follower Combat Kills 679 Entered Garrisons 400 Used RIF Installer 1000 Aligned with FarCom 300 Met Data Miner 300 Used Data Conduit 3000 Pursued by Intercept 500 Friendly Fire -20 Cogmind --------- Core Integrity 207/850 Matter 229/300 Energy 100/100 System Corruption 0% Temperature Cool (0) Movement Core (550) Ox10 Location -6/Factory Parts ------- > --- POWER (2) -------- (None) > --- PROPULSION (4) --- Combat Airjet > --- UTILITY (7) ------ High-capacity Storage Unit Advanced Signal Interpreter Hacking Suite System Shield Relay Coupler [NC] (21) > --- WEAPON (2) ------- (None) > --- INVENTORY (12) --- Light Deuterium Engine Gravmag System Improved Gravmag System Advanced Terrain Scanner Advanced Particle Charger Experimental Thermal Shield Improved Dynamic Insulation System Peak State ------------ > --- POWER ------------ Improved Deuterium Engine Micro Nuclear Core > --- PROPULSION ------- Cooled Airjet Cooled Airjet Improved Gravmag System Combat Airjet > --- UTILITY ---------- High-capacity Storage Unit Long-range Sensor Array Advanced Signal Interpreter Improved Terrain Scanner Advanced Terrain Scan Processor Advanced Melee Analysis Suite System Shield > --- WEAPON ----------- Remote Datajack Spear > --- INVENTORY -------- Aerolev Unit Improved Energy Well Advanced Particle Charger Hardened Medium Armor Plating Experimental Thermal Shield Hacking Suite Relay Coupler [NC] Improved Dynamic Insulation System Proton Cannon Neutron Cannon Proton Missile Launcher [Rating: 63] Favorites ----------- Power Light Nuclear Core Engine Light Angular Momentum Engine Power Core Light Nuclear Core Propulsion Light Treads Treads Light Treads Leg Improved Carbon-fiber Leg Wheel Armored Wheel Hover Unit Gravmag System Utility High-capacity Storage Unit Device Long-range Sensor Array Storage High-capacity Storage Unit Processor Advanced Signal Interpreter Hackware System Shield Protection Hardened Medium Armor Plating Weapon Autogun Energy Gun Shock Rifle Energy Cannon Neutron Cannon Ballistic Gun Autogun Ballistic Cannon Flak Cannon Launcher Shock Bomb Launcher Special Weapon Remote Datajack Slashing Weapon Great Axe Piercing Weapon Spear Special Melee Weapon Improved Datajack Build | -11 -10 -10 -10 -9 -8 -8 -8 -8 -7 -7 -7 -7 -7 -7 -6 -6 ------- Run | Scr Mat Min Exi Min Mat Gar Mat Gar Fac Was Fac Low Low Dat Pro Fac Slots Evolved 8 | . . . . . 4 . . . 2 . . . . . . 2 Power 1 | . . . . . . . . . . . . . . . . 1 Propulsion 2 | . . . . . 1 . . . 1 . . . . . . . Utility 5 | . . . . . 3 . . . 1 . . . . . . 1 Weapon . | . . . . . . . . . . . . . . . . . Parts Attached 235 | 6 15 9 1 . 50 18 37 11 37 3 8 5 5 9 4 17 Power 21 | 1 . 2 1 . 4 1 3 . 2 . 2 . 1 1 . 3 Engine 11 | 1 . 2 . . . . 1 . 2 . 1 . 1 1 . 2 Core 10 | . . . 1 . 4 1 2 . . . 1 . . . . 1 Reactor . | . . . . . . . . . . . . . . . . . Propulsion 50 | 2 . 2 . . 17 . 12 1 11 . 2 . . . 1 2 Treads 24 | 2 . 1 . . 14 . 7 . . . . . . . . . Leg 4 | . . . . . . . 3 1 . . . . . . . . Wheel 5 | . . 1 . . 3 . 1 . . . . . . . . . Hover 17 | . . . . . . . 1 . 11 . 2 . . . 1 2 Flight . | . . . . . . . . . . . . . . . . . Utility 66 | 1 4 . . . 13 3 7 2 17 3 4 1 2 2 1 6 Device 16 | . . . . . 2 1 1 . 5 1 2 . 1 . 1 2 Storage 10 | 1 4 . . . 2 . 2 . 1 . . . . . . . Processor 4 | . . . . . . . . . 2 . . 1 . . . 1 Hackware 10 | . . . . . . 1 1 . 4 1 1 . . . . 2 Protection 26 | . . . . . 9 1 3 2 5 1 1 . 1 2 . 1 Artifact . | . . . . . . . . . . . . . . . . . Weapon 98 | 2 11 5 . . 16 14 15 8 7 . . 4 2 6 2 6 Energy Gun 14 | 1 . . . . 1 . 5 5 1 . . . . 1 . . Energy Cannon 3 | . . . . . . . . . . . . . . . . 3 Ballistic Gun 35 | 1 8 4 . . 12 7 3 . . . . . . . . . Ballistic Cannon 2 | . . . . . . . 1 1 . . . . . . . . Launcher 18 | . 2 1 . . 1 2 2 1 1 . . 2 1 2 1 2 Special Weapon 7 | . 1 . . . . . . . 3 . . 2 . 1 . . Impact Weapon . | . . . . . . . . . . . . . . . . . Slashing Weapon 7 | . . . . . 2 1 3 1 . . . . . . . . Piercing Weapon 7 | . . . . . . 1 . . 1 . . . 1 2 1 1 Special Melee Weapon 5 | . . . . . . 3 1 . 1 . . . . . . . Unidentified Prototypes 3 | . . . . . 1 . 2 . . . . . . . . . Parts Lost 38 | . . 6 . . 4 2 1 4 . . 1 . . 2 2 16 Power 8 | . . 2 . . . 1 . . . . 1 . . 1 . 3 Propulsion 9 | . . 3 . . . . . 1 . . . . . . 1 4 Utility 10 | . . . . . 3 1 . 1 . . . . . 1 1 3 Weapon 11 | . . 1 . . 1 . 1 2 . . . . . . . 6 Highest Loss Streak 12 | . . 5 . . 2 2 1 4 . . 1 . . 2 2 12 Average Slot Usage (%) 95 | . 99 83 85 85 93 98 99 96 98 99 99 100 100 96 98 91 Engine 3 | . 14 7 . . . . . . 6 7 6 7 7 7 7 4 Core 5 | . . . 13 14 8 8 8 9 . . . . . . . 4 Treads 13 | . 28 15 . . 19 27 14 . . . . . . . . . Leg 2 | . . . . . . . 12 25 . . . . . . . . Wheel 2 | . . 3 14 14 6 . . . . . . . . . . . Hover 8 | . . . . . . . . . 28 30 30 30 30 30 29 25 Device 2 | . . . . . 1 2 1 . 4 7 6 7 6 2 5 6 Storage 22 | . 27 28 28 28 26 27 31 36 7 7 7 7 7 7 7 6 Processor 2 | . . . . . . . . . 7 7 7 12 15 15 15 15 Hackware 5 | . . . . . . 2 2 . 21 18 23 9 7 7 7 14 Protection 6 | . . . . . 10 11 9 8 2 3 . 7 7 12 8 1 Energy Gun 1 | . . . . . . . 6 13 . . . . . . . . Ballistic Gun 12 | . 27 27 28 28 17 14 10 . . . . . . . . . Special Weapon 1 | . . . . . . . . . 4 7 7 6 7 4 7 2 Piercing Weapon 1 | . . . . . . . . . 6 7 7 7 6 5 6 2 Naked Turns . | . . . . . . . . . . . . . . . . . Heaviest Build 137 | 13 73 74 75 75 124 119 137 136 64 51 51 55 56 60 62 58 Greatest Support 84 | 40 40 40 10 10 84 78 78 54 55 55 59 59 59 59 59 62 Greatest Overweight (x) 10 | . 1 7 7 7 10 1 9 3 1 . 1 . . 1 1 4 Average Overweight (x) 1 | . . 3 7 7 2 1 1 2 . . . . . . . . Largest Inventory Capacity 34 | 6 20 20 20 20 28 28 34 34 34 12 12 12 12 12 12 12 Average Capacity 21 | 5 16 20 20 20 27 28 30 34 12 12 12 12 12 12 12 12 Most Carried 34 | 6 20 20 20 19 28 28 34 34 34 12 12 12 12 12 12 12 Average Carried 21 | 3 15 18 19 19 26 27 29 33 12 11 11 11 12 10 10 11 Final Capacity 34 | 6 20 20 20 20 28 28 34 34 12 12 12 12 12 12 12 12 Final Carried 34 | 6 20 20 20 19 28 28 34 34 12 11 12 12 12 12 10 7 Class Distribution -------------------- 67% | Hauler-Mutant 11% | Hacker-Mutant 11% | Mutant 8% | Bothacker-Mutant Dominant Class ---------------- Hauler-Mutant | -10/Materials Hauler-Mutant | -10/Mines Hauler-Mutant | -10/Exiles Hauler-Mutant | -9/Mines Hauler-Mutant | -8/Materials Hauler-Mutant | -8/Garrison Hauler-Mutant | -8/Materials Hauler-Mutant | -8/Garrison Bothacker-Mutant | -7/Factory Hacker-Mutant | -7/Waste Hacker-Mutant | -7/Factory Mutant | -7/Lower Caves Mutant | -7/Lower Caves Mutant | -7/Data Miner Mutant | -6/Proximity Caves Hacker-Mutant | -6/Factory Resources | -11 -10 -10 -10 -9 -8 -8 -8 -8 -7 -7 -7 -7 -7 -7 -6 -6 ----------- Run | Scr Mat Min Exi Min Mat Gar Mat Gar Fac Was Fac Low Low Dat Pro Fac Matter Collected 5757 | 194 688 217 . . 2058 501 759 190 410 . 286 102 87 123 73 69 Remotely . | . . . . . . . . . . . . . . . . . Salvage Created 7237 | 123 844 166 . . 2349 425 984 615 587 . 519 24 . 349 113 139 Parts 400 | 10 51 5 . . 140 18 56 24 23 . 38 3 . 14 9 9 Haulers Intercepted 10 | . 2 . . . 5 . 2 . 1 . . . . . . . Recyclers Shooed 16 | 1 1 3 . . 4 . 2 . 3 . . . . . . 2 Parts Field Recycled . | . . . . . . . . . . . . . . . . . Retrieved Matter . | . . . . . . . . . . . . . . . . . Parts Self-Destructed 22 | . . . . . . . . . . . . 13 4 . 5 . Prevented 3 | . . . . . . . . . . . . . . . 3 . Kills | -11 -10 -10 -10 -9 -8 -8 -8 -8 -7 -7 -7 -7 -7 -7 -6 -6 ------- Run | Scr Mat Min Exi Min Mat Gar Mat Gar Fac Was Fac Low Low Dat Pro Fac Combat Hostiles Destroyed 123 | . 12 13 . . 36 12 11 11 9 . 5 1 . 4 4 5 Melee 18 | . . . . . . . 1 2 5 . 5 1 . 1 1 2 Guns 73 | . 12 5 . . 35 9 5 4 . . . . . 3 . . Cannons 1 | . . . . . . . . . . . . . . . . 1 AOE 27 | . . 8 . . 1 3 4 2 4 . . . . . 3 2 Classes Destroyed 15 | 3 6 1 . . 3 1 1 . . . . . . . . . Worker 15 | 1 4 . . . 3 . 3 . 1 . 3 . . . . . Builder 6 | . 1 1 . . 2 . 2 . . . . . . . . . Tunneler 4 | 2 . . . . 2 . . . . . . . . . . . Hauler 10 | . 2 . . . 5 . 2 . 1 . . . . . . . Recycler 10 | 1 1 1 . . 3 . 2 . 1 . 1 . . . . . Mechanic 2 | . 1 . . . . . . . . . 1 . . . . . Operator 4 | . 1 . . . 1 . 1 . . . 1 . . . . . Watcher 9 | . 3 . . . 4 . 1 . . . 1 . . . . . Swarmer 24 | . . . . . 6 6 . . 4 . . 1 . . 4 3 Grunt 55 | . 12 1 . . 18 5 8 7 1 . 2 . . . . 1 Duelist 2 | . . . . . 2 . . . . . . . . . . . Sentry 20 | . . . . . 10 . 2 4 2 . 2 . . . . . Hunter 1 | . . . . . . 1 . . . . . . . . . . Programmer 5 | . . . . . . . 1 . 2 . 1 . . . . 1 Enhanced Grunt 4 | . . . . . . . . . . . . . . 4 . . Assembled 12 | . . 12 . . . . . . . . . . . . . . Best Kill Streak 11 | 3 5 11 . . 5 4 6 6 5 . 3 1 . 3 4 2 Combat Bots Only 11 | . 4 11 . . 5 4 3 6 4 . 1 1 . 3 4 2 Max Kills in Single Turn 5 | 1 2 5 . . 1 2 1 2 3 . 1 1 . 1 2 1 Gunslinging . | . . . . . . . . . . . . . . . . . Exploded 5 | . . 5 . . 1 2 1 2 2 . . . . . 2 1 Melee 1 | . . . . . . . 1 1 1 . 1 1 . 1 1 1 Uniques/NPCs Destroyed . | . . . . . . . . . . . . . . . . . Combat | -11 -10 -10 -10 -9 -8 -8 -8 -8 -7 -7 -7 -7 -7 -7 -6 -6 -------- Run | Scr Mat Min Exi Min Mat Gar Mat Gar Fac Was Fac Low Low Dat Pro Fac Damage Taken 9622 | . 562 619 . 12 2583 816 633 670 361 . 242 69 11 947 296 1801 Core 1789 | . 130 100 . 12 250 146 48 67 55 . 55 37 . 182 64 643 Absorbed by Shields . | . . . . . . . . . . . . . . . . . Core Remaining (%) 38 | 100 . . . 3 . . . 7 . . . . . . 43 . Volleys Fired 525 | 7 80 21 . . 206 45 67 34 8 2 14 4 5 3 4 25 Largest 2 | 2 2 2 . . 2 2 2 2 1 1 1 1 1 1 1 1 Hottest 100 | 70 100 46 . . 48 48 100 100 39 30 30 39 39 39 39 90 Shots Fired 959 | 14 157 36 . . 407 81 115 56 8 2 14 4 5 31 4 25 Gun 850 | 14 154 31 . . 404 74 106 39 . . . . . 28 . . Cannon 23 | . . . . . . . . 5 . . . . . . . 18 Launcher 58 | . 2 5 . . 3 7 9 12 3 . . 4 3 3 4 3 Special 28 | . 1 . . . . . . . 5 2 14 . 2 . . 4 Kinetic 757 | 7 154 31 . . 404 74 82 5 . . . . . . . . Thermal 64 | 7 1 . . . . . 12 . . . . . . 28 . 16 Explosive 12 | . 2 5 . . 3 . . . . . . . . . . 2 Electromagnetic 99 | . . . . . . 7 21 51 3 . . 4 3 3 4 3 Robot Hit Streak 23 | 3 12 5 . . 16 23 10 12 2 2 11 . 1 8 . 7 Robot Miss Streak 5 | 1 5 2 . . 4 1 5 4 2 . 3 . 1 2 . 2 Penetration Max . | . . . . . . . . . . . . . . . . . Secondary Targets 4 | . . 1 . . 2 1 . . . . . . . . . . Max Gunslinging Chain 1 | . . 1 . . 1 1 . . . . . . . . . . Autonomous 29 | . . . . . . . . . . . . . . 29 . . Shots Hit Robots 657 | 9 103 21 . . 274 51 69 33 18 7 30 2 2 26 2 10 Core Hits 342 | 5 48 27 . . 108 23 35 21 15 . 14 2 . 18 7 19 Critical Hits 7 | . 1 . . . 2 . 1 . . . 2 . . . . 1 Critical Kills 4 | . 1 . . . 2 . . . . . 1 . . . . . Critical Parts Destroyed 3 | . . . . . . . 1 . . . 1 . . . . 1 Melee Attacks 180 | . . . . . 7 13 9 3 42 9 53 3 4 5 5 27 Impact . | . . . . . . . . . . . . . . . . . Slashing 25 | . . . . . 7 9 6 3 . . . . . . . . Piercing 147 | . . . . . . 1 . . 40 9 53 3 4 5 5 27 Sneak Attacks 25 | . . . . . . . 1 1 7 5 10 . . 1 . . Combat Hostiles 11 | . . . . . . . . 1 3 5 2 . . . . . Follow-up Attacks . | . . . . . . . . . . . . . . . . . Damage Inflicted 15047 | 114 1230 756 . . 4543 1037 1596 1098 1132 211 1273 100 104 727 204 922 Guns 8454 | 114 1230 282 . . 4186 787 1047 363 . . . . . 445 . . Cannons 184 | . . . . . . . . 82 . . . . . . . 102 Explosions 3217 | . . 453 . . 357 250 479 442 247 . . 41 70 80 134 664 Melee 3149 | . . . . . . . 70 211 885 211 1273 59 34 202 70 134 Ramming 43 | . . 21 . . . . . . . . . . . . . 22 Kinetic 7442 | 75 1230 282 . . 4186 787 800 82 . . . . . . . . Thermal 1099 | 39 . . . . 195 . 167 111 40 . . . . 445 . 102 Explosive 1093 | . . 453 . . 162 . . . . . . . . . . 478 Electromagnetic 2221 | . . . . . . 250 559 694 207 . . 41 70 80 134 186 Impact . | . . . . . . . . . . . . . . . . . Slashing 281 | . . . . . . . 70 211 . . . . . . . . Piercing 2868 | . . . . . . . . . 885 211 1273 59 34 202 70 134 Highest Corruption 11 | . . . . . 1 1 1 1 1 10 11 11 11 11 11 . Average Corruption 3 | . . . . . 1 1 1 1 1 8 10 11 11 11 11 . Corruption Purged . | . . . . . . . . . . . . . . . . . Effects 145 | . . . . . 11 5 7 2 2 3 67 18 12 12 6 . Message Errors 34 | . . . . . 4 2 1 1 2 2 14 4 1 . 3 . Matter Fused 26 | . . . . . . . . . . . 14 3 2 6 1 . Heat Flow Errors 7 | . . . . . . . . . . . 4 1 2 . . . Energy Discharges 17 | . . . . . 4 2 4 . . 1 2 1 2 . 1 . Data Loss (minor) 10 | . . . . . 1 1 1 . . . 4 1 1 1 . . Data Loss (major) 3 | . . . . . . . . . . . 3 . . . . . Alerts 2 | . . . . . . . . . . . 2 . . . . . Misdirections 34 | . . . . . . . . . . . 17 8 4 5 . . Targeting Errors 11 | . . . . . 1 . 1 1 . . 7 . . . 1 . Weapon Failures 1 | . . . . . 1 . . . . . . . . . . . Overload Shots . | . . . . . . . . . . . . . . . . . Overflow Damage 427 | . . 12 . . 16 . . 87 165 . 143 . . 4 . . Projectiles 9 | . . . . . . . . 9 . . . . . . . . Explosions 44 | . . 12 . . 16 . . . 16 . . . . . . . Melee 374 | . . . . . . . . 78 149 . 143 . . 4 . . Knockbacks 5 | . . . . . . . . 5 . . . . . . . . Impact . | . . . . . . . . . . . . . . . . . Kinetic 3 | . . . . . . . . 3 . . . . . . . . Secondary 2 | . . . . . . . . 2 . . . . . . . . Self-Inflicted Damage 130 | . . 7 . . 52 16 2 24 . . . . . . 18 11 Shots 10 | . . 1 . . 1 1 1 3 . . . . . . 3 . Rammed 2 | . . 1 . . . . . . . . . . . . . 1 Targets Rammed 2 | . . 1 . . . . . . . . . . . . . 1 Kicked . | . . . . . . . . . . . . . . . . . Crushed . | . . . . . . . . . . . . . . . . . Highest Temperature 326 | 54 20 6 . . 81 120 326 264 21 14 152 214 257 5 . 220 Average Temperature 43 | 25 3 4 . . 20 24 60 90 11 11 53 115 107 3 . 51 Received Heat Transfer 2832 | . 315 15 . 6 990 261 189 342 36 . 96 9 . 120 9 444 Effects 3 | . . . . . . . . 2 . . . . . . . 1 Energy Bleed 1 | . . . . . . . . . . . . . . . . 1 Interference 2 | . . . . . . . . 2 . . . . . . . . Siege Activations . | . . . . . . . . . . . . . . . . . Robots Corrupted 4 | . . . . . . . 1 3 . . . . . . . . Combat Hostiles 4 | . . . . . . . 1 3 . . . . . . . . Parts Fried 8 | . . . . . . 1 3 3 1 . . . . . . . Impact Corruptions . | . . . . . . . . . . . . . . . . . Robots Melted . | . . . . . . . . . . . . . . . . . Combat Hostiles . | . . . . . . . . . . . . . . . . . Parts Melted 2 | 1 . . . . . . . . . . . . . 1 . . Heat Transferred 1684 | 111 . . . . 100 . 372 150 50 . . . . 851 . 50 Parts Sabotaged . | . . . . . . . . . . . . . . . . . Parts Stolen . | . . . . . . . . . . . . . . . . . Parts Stripped . | . . . . . . . . . . . . . . . . . Power Chain Reactions 7 | . . . . . . . 3 2 1 . . . . . . 1 Missiles Intercepted . | . . . . . . . . . . . . . . . . . Alert | -11 -10 -10 -10 -9 -8 -8 -8 -8 -7 -7 -7 -7 -7 -7 -6 -6 ------- Run | Scr Mat Min Exi Min Mat Gar Mat Gar Fac Was Fac Low Low Dat Pro Fac Peak Influence 901 | 20 318 113 . 55 480 901 545 298 438 185 290 . . . . 348 Average Influence 237 | 6 132 25 . 53 190 694 279 220 137 171 105 . . . . 162 Maximum Alert Level 3 | . 1 . . . 2 3 2 1 2 . 1 . . . . 1 Low Security (%) 60 | 100 88 100 . 100 59 . 47 21 78 100 89 . . . . 73 Level 1 20 | . 11 . . . 32 6 24 78 17 . 10 . . . . 26 Level 2 11 | . . . . . 7 38 28 . 4 . . . . . . . Level 3 7 | . . . . . . 55 . . . . . . . . . . Level 4 . | . . . . . . . . . . . . . . . . . Level 5 . | . . . . . . . . . . . . . . . . . High Security . | . . . . . . . . . . . . . . . . . Max Security . | . . . . . . . . . . . . . . . . . Squads Dispatched 29 | . 4 . . . 3 . 4 . 4 . 7 . . . . 7 Investigation 13 | . . . . . 2 . 3 . 1 . 4 . . . . 3 Extermination 4 | . . . . . . . . . 2 . 2 . . . . . Reinforcement 9 | . 4 . . . 1 . 1 . 1 . 1 . . . . 1 Assault 1 | . . . . . . . . . . . . . . . . 1 Garrison . | . . . . . . . . . . . . . . . . . Intercept 2 | . . . . . . . . . . . . . . . . 2 Construction Impeded 2 | . . . . . . . . . . . 1 . . . . 1 Haulers Reinforced . | . . . . . . . . . . . . . . . . . Stealth | -11 -10 -10 -10 -9 -8 -8 -8 -8 -7 -7 -7 -7 -7 -7 -6 -6 --------- Run | Scr Mat Min Exi Min Mat Gar Mat Gar Fac Was Fac Low Low Dat Pro Fac Distress Signals 11 | . 4 . . . 2 . 1 . . . 2 . . . . 2 Communications Jammed . | . . . . . . . . . . . . . . . . . Distress Signals . | . . . . . . . . . . . . . . . . . Times Spotted 272 | . 29 18 . 2 66 17 30 17 15 6 12 5 4 4 7 40 Peak Tracking Total 14 | . 3 9 . 2 6 4 5 6 4 5 5 4 3 4 4 14 Tactical Retreats 30 | . 2 3 . . 8 . 1 5 . 1 4 . 1 . . 5 Traps | -11 -10 -10 -10 -9 -8 -8 -8 -8 -7 -7 -7 -7 -7 -7 -6 -6 ------- Run | Scr Mat Min Exi Min Mat Gar Mat Gar Fac Was Fac Low Low Dat Pro Fac Traps Triggered 12 | . . . . . 1 3 1 3 2 . 2 . . . . . Indirectly 2 | . . . . . . . . 1 1 . . . . . . . Trap Hack Attempts 5 | . . . . . . 5 . . . . . . . . . . Triggered . | . . . . . . . . . . . . . . . . . Disarmed . | . . . . . . . . . . . . . . . . . Reprogrammed . | . . . . . . . . . . . . . . . . . Reused . | . . . . . . . . . . . . . . . . . Traps Extracted . | . . . . . . . . . . . . . . . . . Installed . | . . . . . . . . . . . . . . . . . Triggered 1 | . . . . . . . 1 . . . . . . . . . Machines | -11 -10 -10 -10 -9 -8 -8 -8 -8 -7 -7 -7 -7 -7 -7 -6 -6 ---------- Run | Scr Mat Min Exi Min Mat Gar Mat Gar Fac Was Fac Low Low Dat Pro Fac Machines Disabled 12 | . 2 . . . 3 3 2 . . . 1 . . . . 1 Max in Single Turn 1 | . 1 . . . 1 1 1 . . . 1 . . . . 1 Garrison Access 5 | . . . . . . . . . 2 . 1 . . . . 2 Garrison Relay 3 | . . . . . . 3 . . . . . . . . . . Machines Sabotaged . | . . . . . . . . . . . . . . . . . Garrisons Compromised . | . . . . . . . . . . . . . . . . . Overloaded Fab Kills 1 | . . . . . . . . . . . . . . . . 1 Fab Network Shutdowns 1 | . . . . . . . . . 1 . . . . . . . Hacking | -11 -10 -10 -10 -9 -8 -8 -8 -8 -7 -7 -7 -7 -7 -7 -6 -6 --------- Run | Scr Mat Min Exi Min Mat Gar Mat Gar Fac Was Fac Low Low Dat Pro Fac Machines Accessed 66 | . 5 1 2 . 16 . 7 . 12 . 10 1 . 4 . 8 Terminals 38 | . 4 1 . . 11 . 5 . 7 . 4 1 . . . 5 Fabricators 4 | . . . . . . . . . 1 . 2 . . . . 1 Repair Stations 5 | . . . . . 2 . . . 2 . 1 . . . . . Recycling Units 2 | . 1 . . . . . . . . . 1 . . . . . Scanalyzers 4 | . . . . . 2 . 1 . . . 1 . . . . . Garrison Access 7 | . . . . . 1 . 1 . 2 . 1 . . . . 2 Total Hacks 245 | . 11 5 5 . 58 . 20 . 56 . 35 3 . 25 . 27 Successful 162 | . 6 3 5 . 40 . 10 . 42 . 15 1 . 25 . 15 Failed 81 | . 5 2 . . 17 . 9 . 14 . 20 2 . . . 12 Catastrophic 15 | . . . . . 1 . 4 . 1 . 4 . . . . 5 Database Lockouts 2 | . . . . . 1 . 1 . . . . . . . . . Manual 110 | . 3 5 1 . 27 . 13 . 29 . 12 2 . . . 18 Terminals 131 | . 8 5 . . 30 . 15 . 36 . 15 3 . . . 19 Fabricators 16 | . . . . . . . . . 4 . 8 . . . . 4 Repair Stations 22 | . . . . . 6 . . . 13 . 3 . . . . . Recycling Units 5 | . 3 . . . . . . . . . 2 . . . . . Scanalyzers 22 | . . . . . 17 . 2 . . . 3 . . . . . Garrison Access 19 | . . . . . 5 . 3 . 3 . 4 . . . . 4 Terminal Hacks 70 | . 3 3 5 . 8 . 4 . 12 . 4 1 . 25 . 5 Record 16 | . . . 4 . . . . . . . . 1 . 11 . . Part Schematic 13 | . . . . . 1 . . . 3 . 1 . . 7 . 1 Robot Schematic 7 | . 1 . . . . . 1 . . . . . . 4 . 1 Robot Analysis 2 | . . 2 . . . . . . . . . . . . . . Prototype ID Bank 5 | . . . . . . . . . 2 . . . . 3 . . Level Access Points 1 | . . . . . . . . . . . . . . . . 1 Branch Access Points 3 | . . . . . 1 . . . 1 . 1 . . . . . Machine Index 1 | . . . . . . . . . 1 . . . . . . . Terminal Index 1 | . . . . . . . . . 1 . . . . . . . Fabricator Index 1 | . . . . . . . . . . . 1 . . . . . Unreport Threat 5 | . . . . . 2 . 2 . 1 . . . . . . . Locate Traps 4 | . 1 . . . . . 1 . . . 1 . . . . 1 Hauler Manifests 3 | . . . . . 2 . . . 1 . . . . . . . Registered Components 1 | . . . . . . . . . . . . . . . . 1 Zone Layout 6 | . 1 1 . . 2 . . . 2 . . . . . . . EX-Prototype ID Bank 1 | . . . 1 . . . . . . . . . . . . . Fabricator Hacks 8 | . . . . . . . . . 3 . 3 . . . . 2 Load Schematic 4 | . . . . . . . . . 1 . 2 . . . . 1 Build 4 | . . . . . . . . . 2 . 1 . . . . 1 Repair Station Hacks 19 | . . . . . 6 . . . 12 . 1 . . . . . Scan Component 10 | . . . . . 3 . . . 6 . 1 . . . . . Repair 9 | . . . . . 3 . . . 6 . . . . . . . Recycling Unit Hacks 3 | . 2 . . . . . . . . . 1 . . . . . Process 1 | . 1 . . . . . . . . . . . . . . . Retrieve Matter 1 | . 1 . . . . . . . . . . . . . . . Retrieve Components 1 | . . . . . . . . . . . 1 . . . . . Scanalyzer 20 | . . . . . 17 . 2 . . . 1 . . . . . Insert Component 10 | . . . . . 8 . 1 . . . 1 . . . . . Analyze 10 | . . . . . 9 . 1 . . . . . . . . . Garrison Access Hacks 7 | . . . . . 1 . 1 . 2 . 1 . . . . 2 Unlock Access 2 | . . . . . 1 . 1 . . . . . . . . . Seal Access 4 | . . . . . . . . . 2 . 1 . . . . 1 Coupler Status 1 | . . . . . . . . . . . . . . . . 1 Unauthorized Hacks 35 | . 1 . . . 8 . 3 . 13 . 4 . . . . 6 Terminals 24 | . 1 . . . 5 . 1 . 11 . 2 . . . . 4 Track 5 | . 1 . . . 1 . . . 2 . . . . . . 1 Assimilate 6 | . . . . . 1 . . . 4 . . . . . . 1 Botnet 9 | . . . . . 3 . . . 4 . 1 . . . . 1 Operators 3 | . . . . . . . . . 1 . 1 . . . . 1 Sabotage 1 | . . . . . . . 1 . . . . . . . . . Fabricators 4 | . . . . . . . . . 1 . 1 . . . . 2 Report 2 | . . . . . . . . . 1 . 1 . . . . . Prioritize 1 | . . . . . . . . . . . . . . . . 1 Overload 1 | . . . . . . . . . . . . . . . . 1 Repair Stations 1 | . . . . . . . . . 1 . . . . . . . Mechanics 1 | . . . . . . . . . 1 . . . . . . . Recycling Units . | . . . . . . . . . . . . . . . . . Scanalyzers . | . . . . . . . . . . . . . . . . . Garrison Access 6 | . . . . . 3 . 2 . . . 1 . . . . . Restock 2 | . . . . . 1 . 1 . . . . . . . . . Reprogram 3 | . . . . . 1 . 1 . . . 1 . . . . . Eject 1 | . . . . . 1 . . . . . . . . . . . Data Cores Recovered 1 | . . . . . . . 1 . . . . . . . . . Used 1 | . . . . . . . 1 . . . . . . . . . Hacking Detections 53 | . 5 1 . . 14 . 7 . 9 . 9 1 . . . 7 Full Trace Events 8 | . . 1 . . 1 . . . 1 . 3 . . . . 2 Feedback Events 1 | . . . . . . . . . 1 . . . . . . . Corruption 1 | . . . . . . . . . 1 . . . . . . . Feedback Blocked . | . . . . . . . . . . . . . . . . . Robot Schematics Acquired 7 | . 1 . . . . . 1 . . . . . . 4 . 1 Robots Built . | . . . . . . . . . . . . . . . . . Matter . | . . . . . . . . . . . . . . . . . Time . | . . . . . . . . . . . . . . . . . Total Robot Build Rating . | . . . . . . . . . . . . . . . . . Part Schematics Acquired 21 | . . . . . 8 . 1 . 3 . 1 . . 7 . 1 Parts Built 6 | . . . . . . . . . 3 . 1 . . . . 2 Matter 716 | . . . . . . . . . 380 . 190 . . . . 146 Time 263 | . . . . . . . . . 95 . 95 . . . . 73 Total Part Build Rating 27 | . . . . . . . . . 16 . 5 . . . . 6 Parts Repaired 9 | . . . . . 3 . . . 6 . . . . . . . Time 364 | . . . . . 84 . . . 280 . . . . . . . Parts Recycled . | . . . . . . . . . . . . . . . . . Recycled Matter 293 | . 293 . . . . . . . . . . . . . . . Retrieved Matter 293 | . 293 . . . . . . . . . . . . . . . Retrieved Components 1 | . . . . . . . . . . . 1 . . . . . Parts Scanalyzed 9 | . . . . . 7 . 1 . . . 1 . . . . . Part Schematics Acquired 8 | . . . . . 7 . 1 . . . . . . . . . Parts Damaged . | . . . . . . . . . . . . . . . . . Bothacking | -11 -10 -10 -10 -9 -8 -8 -8 -8 -7 -7 -7 -7 -7 -7 -6 -6 ------------ Run | Scr Mat Min Exi Min Mat Gar Mat Gar Fac Was Fac Low Low Dat Pro Fac Used RIF Installer 2 | . . . . . . 1 . 1 . . . . . . . . Program Shield 1 | . . . . . . . . 1 . . . . . . . . Robots Hacked 20 | . . . . . . 2 1 . 4 1 7 . 1 . . 4 Non-combat 10 | . . . . . . . . . . . 5 . 1 . . 4 Combat 10 | . . . . . . 2 1 . 4 1 2 . . . . . Robot Hacks Applied 22 | . . . . . . 2 2 . 4 1 8 . 1 . . 4 parse_system 1 | . . . . . . . . . . . . . 1 . . . deconstruct_machine 1 | . . . . . . . . . . . . . . . . 1 ignore_repairs 3 | . . . . . . . . . . . 2 . . . . 1 drop_inventory 3 | . . . . . . . . . . . 1 . . . . 2 ignore_targets 1 | . . . . . . . . . . 1 . . . . . . find_garrison 2 | . . . . . . . 1 . . . 1 . . . . . reboot_system 4 | . . . . . . . . . 2 . 2 . . . . . go_dormant 1 | . . . . . . . . . 1 . . . . . . . overwrite_iff 2 | . . . . . . 1 . . 1 . . . . . . . formatsys_low 1 | . . . . . . . . . . . 1 . . . . . formatsys_high 3 | . . . . . . 1 1 . . . 1 . . . . . Relay Couplers Released 24 | . . . . . 4 14 4 . 2 . . . . . . . Ejected 4 | . . . . . 4 . . . . . . . . . . . Machine Destruction 13 | . . . . . . 11 . . 2 . . . . . . . Programmers 7 | . . . . . . 3 4 . . . . . . . . . Attached 7 | . . . . . . 1 1 . 2 1 1 . . . . 1 Robots Rewired . | . . . . . . . . . . . . . . . . . Allies Hacked . | . . . . . . . . . . . . . . . . . Hacks Repelled . | . . . . . . . . . . . . . . . . . Allies | -11 -10 -10 -10 -9 -8 -8 -8 -8 -7 -7 -7 -7 -7 -7 -6 -6 -------- Run | Scr Mat Min Exi Min Mat Gar Mat Gar Fac Was Fac Low Low Dat Pro Fac Total Allies 21 | . . 3 . . 2 2 1 . 4 . 8 . . . . 1 Largest Group 4 | . . 3 . . 2 2 2 . 3 1 4 3 3 . . 1 Highest-Rated Group 110 | . . 40 . . 49 49 25 . 62 10 110 79 79 . . 10 Highest-Rated Ally 39 | . . 16 . . 39 39 15 . 26 10 31 31 31 . . 10 Total Orders 32 | . . 3 . . 6 7 . . 11 . 3 . . . . 2 STAY 1 | . . . . . . 1 . . . . . . . . . . GOTO 18 | . . 2 . . 4 3 . . 6 . 2 . . . . 1 FOLLOW 12 | . . 1 . . 2 3 . . 5 . . . . . . 1 AID 1 | . . . . . . . . . . . 1 . . . . . Ally Attacks 121 | . . 24 . 3 . 23 21 . 4 . 7 18 11 10 . . Total Damage 2339 | . . 247 . 195 . 496 347 . 63 . 44 276 191 480 . . Kills 23 | . . 5 . 2 . 7 4 . . . . 4 1 . . . Allies Corrupted . | . . . . . . . . . . . . . . . . . Allies Melted . | . . . . . . . . . . . . . . . . . Turrets Deployed 3 | . . . . 1 . . . . . . . . . 2 . . Intel | -11 -10 -10 -10 -9 -8 -8 -8 -8 -7 -7 -7 -7 -7 -7 -6 -6 ------- Run | Scr Mat Min Exi Min Mat Gar Mat Gar Fac Was Fac Low Low Dat Pro Fac Robot Analysis Total 117 | . . 2 . . . . . . . . . . . 115 . . Derelict Logs Recovered 5 | . . 1 . . . . . . . . . 1 2 . 1 . Drone Launches . | . . . . . . . . . . . . . . . . . Drone Recoveries . | . . . . . . . . . . . . . . . . . Exploration | -11 -10 -10 -10 -9 -8 -8 -8 -8 -7 -7 -7 -7 -7 -7 -6 -6 ------------- Run | Scr Mat Min Exi Min Mat Gar Mat Gar Fac Was Fac Low Low Dat Pro Fac Turns Passed 15024 | 107 1482 755 464 139 3932 1843 1652 464 1365 83 1355 341 201 233 136 472 Spaces Moved 10088 | 47 677 345 303 93 1835 942 694 172 1344 100 1663 491 337 278 238 529 Core 3 | 3 . . . . . . . . . . . . . . . . Treads 3349 | 44 677 254 . . 1041 942 391 . . . . . . . . . Legs 441 | . . . . . . . 269 172 . . . . . . . . Wheels 1315 | . . 91 303 93 794 . 34 . . . . . . . . . Hover 4980 | . . . . . . . . . 1344 100 1663 491 337 278 238 529 Flight . | . . . . . . . . . . . . . . . . . Fastest Speed 45 | 50 160 150 150 150 125 175 170 180 48 48 48 48 48 48 45 45 Average Speed 110 | 152 172 188 150 150 165 175 176 185 50 48 50 48 48 51 45 48 Slowest Speed 300 | 160 180 220 150 150 280 175 300 210 112 48 105 48 48 110 110 290 Overloaded Moves . | . . . . . . . . . . . . . . . . . Propulsion Burnouts . | . . . . . . . . . . . . . . . . . Robots Hopped 1 | . . . . . . . . . . . . . . 1 . . Cave-ins Triggered . | . . . . . . . . . . . . . . . . . Exploration Rate (%) 52 | 5 97 63 69 32 97 68 54 39 23 74 29 63 49 78 40 20 Regions Visited 16 Branch Regions 7 Pre-discovered Areas 27 | . . . 1 . . . . . . . . . . 26 . . Known Exits Taken 7 | . . . . . 1 . 1 . . . 1 1 1 1 1 . Unknown Exits Taken 5 | 1 1 1 1 1 . . . . . . . . . . . . Scrap Searched 3 | . . 1 . . . . . . . . . 1 . . 1 . Spaces Dug 86 | . 1 . . . 7 . 5 . 17 2 23 . 2 . . 29 Terrain Destroyed 226 | . 15 40 . . 59 . 11 12 21 2 23 . 2 . . 41 Melee 72 | . . . . . 7 . 3 . 17 2 23 . 2 . . 18 Projectile 13 | . 1 . . . . . . . . . . . . . . 12 AOE 141 | . 14 40 . . 52 . 8 12 4 . . . . . . 11 Actions | -11 -10 -10 -10 -9 -8 -8 -8 -8 -7 -7 -7 -7 -7 -7 -6 -6 --------- Run | Scr Mat Min Exi Min Mat Gar Mat Gar Fac Was Fac Low Low Dat Pro Fac Total 12818 | 65 829 409 316 93 2382 1047 1013 254 1966 119 2089 584 363 361 252 676 Wait 1506 | . 31 31 . . 198 12 166 20 500 5 340 80 10 49 . 64 Move 10070 | 46 676 344 302 92 1834 940 693 171 1344 99 1662 490 336 275 237 529 Hop 1 | . . . . . . . . . . . . . . 1 . . Pick Up 135 | 6 18 3 6 . 42 4 15 5 11 . 6 1 1 9 1 7 Fast Attach 61 | 6 2 2 . . 13 2 14 3 10 . 3 . 1 1 . 4 Attach 55 | . . 3 1 . 11 3 3 3 11 1 2 1 . 6 2 8 Detach 9 | . 1 . . . 3 . . 1 1 . . . . 2 . 1 Swap 119 | . 13 4 . . 26 13 20 5 16 2 3 4 4 2 2 5 Drop 138 | . 8 . 7 1 42 3 26 4 23 1 6 1 2 8 1 5 Fire 525 | 7 80 21 . . 206 45 67 34 8 2 14 4 5 3 4 25 Melee 180 | . . . . . 7 13 9 3 42 9 53 3 4 5 5 27 Ram 1 | . . . . . . . . . . . . . . . . 1 Kick . | . . . . . . . . . . . . . . . . . Crush 1 | . . 1 . . . . . . . . . . . . . . Escape Stasis 12 | . . . . . . 7 . 5 . . . . . . . . Rewire . | . . . . . . . . . . . . . . . . . Trap 5 | . . . . . . 5 . . . . . . . . . . Miscellaneous . | . . . . . . . . . . . . . . . . . Route ------- -11/Scrapyard -10/Materials (discovered 5 exits: [*Mat x3] / *Min x2) -10/Mines (discovered 2 exits: [*Mat] / *Exi) -10/Exiles -9/Mines -8/Materials (discovered 5 exits: *Fac x3 / *Sto / Gar) -8/Garrison (discovered 2 exits: *Mat x2) -8/Materials (discovered 4 exits: *Fac x2 / *Sto / Gar) -8/Garrison -7/Factory (discovered 3 exits: *Fac / Low x2) -7/Waste -7/Factory (discovered 2 exits: *Low x2) -7/Lower Caves -7/Lower Caves -7/Data Miner -6/Proximity Caves -6/Factory (discovered 4 exits: Fac x4) History --------- Turn | Location | Event 56 | -11/Scrapyard | Discovered new exit (range 15) 108 | -11/Scrapyard | Entered Materials 305 | -10/Materials | Build established: Mutant 432 | -10/Materials | Discovered new exit (range 14) 636 | -10/Materials | Discovered new exit (range 3) 804 | -10/Materials | Core integrity fell below 50% 917 | -10/Materials | Discovered new exit (range 6) 967 | -10/Materials | Build established: Hauler-Mutant 1110 | -10/Materials | Discovered new exit (range 8) 1285 | -10/Materials | Discovered new exit (range 10) 1590 | -10/Materials | Entered Mines 1756 | -10/Mines | Assembled infested the area 1761 | -10/Mines | Assisted by a Guerilla fighting off Assembled 1834 | -10/Mines | Core integrity fell below 20% 1841 | -10/Mines | Destroyed 11 combat bots 1867 | -10/Mines | Lost 5 parts (2p2n1w) 1889 | -10/Mines | Assisted by bots powering up and referring to "LRC-V3" 2250 | -10/Mines | Learned Materials terminal intel 2286 | -10/Mines | Discovered new exit (range 5) 2322 | -10/Mines | Discovered new exit (range 12) 2337 | -10/Mines | Deemed a non-threat by the Exiles lab entrance 2345 | -10/Mines | Entered Exiles 2385 | -10/Exiles | Met 8R-AWN 2411 | -10/Exiles | Met EX-HEX 2476 | -10/Exiles | Learned location of Zion (-6) 2500 | -10/Exiles | Met EX-BIN 2521 | -10/Exiles | Aligned with FarCom system 2522 | -10/Exiles | Given EX-Vault access code 2557 | -10/Exiles | Opened EX-Vault 2574 | -10/Exiles | Found AWS/Thermal 2578 | -10/Exiles | Found Skeleton Box 2583 | -10/Exiles | Found Deploy-a-Sentry 2585 | -10/Exiles | Found Deploy-a-Sentry 2587 | -10/Exiles | Found Deploy-a-Sentry 2618 | -10/Exiles | Warned to stay clear of 0b10 Research branches 2662 | -10/Exiles | Met EX-DEC 2791 | -10/Exiles | Discovered new exit (range 14) 2809 | -10/Exiles | Stole three prototypes: Skeleton Box, AWS/Thermal, Deploy-a-Sentry 2809 | -10/Exiles | Entered Mines 2811 | -9/Mines | DAS Turret deployed 2930 | -9/Mines | Discovered new exit (range 10) 2948 | -9/Mines | Entered Materials 2948 | -8/Materials | Evolved 4 slots: Propulsion x1, Utility x3 2949 | -8/Materials | Loaded intel: 12 terminal locations 3421 | -8/Materials | Discovered new exit (range 16) 3652 | -8/Materials | Discovered new exit (range 14) 3887 | -8/Materials | Discovered new exit (range 9) 4322 | -8/Materials | Repaired Lgt. Treads 4598 | -8/Materials | Repaired Hcp. Storage Unit 4669 | -8/Materials | Repaired Arm. Wheel 5208 | -8/Materials | Discovered new exit (range 16) 6008 | -8/Materials | Identified exit to Storage 6602 | -8/Materials | Central database locked down 6854 | -8/Materials | Identified exit to Garrison 6880 | -8/Materials | Entered Garrison 6880 | -8/Garrison | Accompanied by 2 allies 7033 | -8/Garrison | Triggered checkpoint 7077 | -8/Garrison | Triggered checkpoint 7085 | -8/Garrison | Core integrity fell below 50% 7183 | -8/Garrison | Discovered new exit (range 9) 7210 | -8/Garrison | Installed Relay Interface Framework 7356 | -8/Garrison | Triggered checkpoint 7434 | -8/Garrison | Garrison Relay disabled 7674 | -8/Garrison | Triggered checkpoint 7900 | -8/Garrison | Triggered checkpoint 8055 | -8/Garrison | Garrison Relay disabled 8179 | -8/Garrison | Discovered new exit (range 11) 8578 | -8/Garrison | Triggered checkpoint 8639 | -8/Garrison | Garrison Relay disabled 8723 | -8/Garrison | Entered Materials 8723 | -8/Materials | Accompanied by 2 allies 8884 | -8/Materials | Core integrity fell below 20% 9147 | -8/Materials | Discovered new exit (range 10) 9692 | -8/Materials | Discovered new exit (range 3) 9937 | -8/Materials | Discovered exit to Storage (range 3) 10119 | -8/Materials | Central database locked down 10313 | -8/Materials | Identified exit to Garrison 10375 | -8/Materials | Entered Garrison 10445 | -8/Garrison | Triggered checkpoint 10451 | -8/Garrison | Triggered checkpoint 10663 | -8/Garrison | Lost 4 parts (1n1u2w) 10747 | -8/Garrison | Discovered new exit (range 14) 10794 | -8/Garrison | Expanded RIF knowledge: Program Shield 10839 | -8/Garrison | Entered Factory 10839 | -7/Factory | Evolved 2 slots: Propulsion x1, Utility x1 10841 | -7/Factory | FarCom data flow suspended 11058 | -7/Factory | Identified exit to Lower Caves 11129 | -7/Factory | Build established: Bothacker-Mutant 11390 | -7/Factory | Discovered new exit (range 13) 11417 | -7/Factory | Identified exit to Factory 11498 | -7/Factory | Fabricated Imp. Dynamic Insulation System (x2) 11710 | -7/Factory | Repaired Remote Datajack 11750 | -7/Factory | Repaired Imp. Light Armor Plating 11893 | -7/Factory | Repaired Aerolev Unit 11960 | -7/Factory | Repaired Gravmag System 12005 | -7/Factory | Repaired Gravmag System 12057 | -7/Factory | Repaired Cmb. Airjet 12142 | -7/Factory | Local fabrication network quarantined 12178 | -7/Factory | Fabricated Lrn. Sensor Array (x1) 12204 | -7/Factory | Manually triggered Chute Trap 12204 | -7/Factory | Sucked down chute 12204 | -7/Factory | Entered Waste 12210 | -7/Waste | Spotted C-40 Crusher 12211 | -7/Waste | Spotted C-40 Crusher 12215 | -7/Waste | 1 allies followed down the chute 12219 | -7/Waste | EMP discharged 12219 | -7/Waste | System corruption reached 10% 12221 | -7/Waste | Spotted C-40 Crusher 12246 | -7/Waste | Spotted C-40 Crusher 12267 | -7/Waste | Spotted C-40 Crusher 12276 | -7/Waste | Discovered new exit (range 16) 12276 | -7/Waste | Spotted C-40 Crusher 12283 | -7/Waste | Identified exit to Factory 12287 | -7/Waste | Entered Factory 12287 | -7/Factory | Accompanied by 1 ally 12475 | -7/Factory | Build established: Hacker-Mutant 12711 | -7/Factory | Fabricated Adv. Melee Analysis Suite? 13586 | -7/Factory | Allied Derelicts emerged from ambush trap array 13642 | -7/Factory | Entered Lower Caves 13642 | -7/Lower Caves | Accompanied by 3 allies 13853 | -7/Lower Caves | Encountered a Warlord checkpoint 13956 | -7/Lower Caves | Discovered new exit (range 11) 13960 | -7/Lower Caves | Learned Factory garrison access intel 13976 | -7/Lower Caves | Identified exit to Lower Caves 13983 | -7/Lower Caves | Entered another Lower Caves area 13983 | -7/Lower Caves | Accompanied by 3 allies 13987 | -7/Lower Caves | Build established: Mutant 14080 | -7/Lower Caves | Learned Factory terminal intel 14175 | -7/Lower Caves | Learned Factory trap positions 14180 | -7/Lower Caves | Discovered new exit (range 9) 14183 | -7/Lower Caves | Identified exit to Data Miner 14184 | -7/Lower Caves | Entered Data Miner 14184 | -7/Data Miner | Discovered new exit (range 6) 14194 | -7/Data Miner | Met Data Miner 14222 | -7/Data Miner | Acquired the access code to Warlord's prototype stash 14222 | -7/Data Miner | Learned location of Section 7 (-3) 14230 | -7/Data Miner | Received God Mode back door access code from Data Miner 14241 | -7/Data Miner | DAS Turret deployed 14245 | -7/Data Miner | DAS Turret deployed 14252 | -7/Data Miner | Interfaced with the Data Conduit 14325 | -7/Data Miner | Found Exp. Thermal Shield 14359 | -7/Data Miner | Found Exp. Thermal Shield 14416 | -7/Data Miner | Identified exit to Proximity Caves 14417 | -7/Data Miner | Entered Proximity Caves 14420 | -6/Proximity Caves | Core integrity fell below 50% 14483 | -6/Proximity Caves | Learned location of 1 exit from Factory 14546 | -6/Proximity Caves | Discovered exit to Factory (range 16) 14553 | -6/Proximity Caves | Entered Factory 14553 | -6/Factory | Evolved 2 slots: Power x1, Utility x1 14554 | -6/Factory | Identified exit to Factory 14555 | -6/Factory | Loaded intel: 79 trap records 14556 | -6/Factory | Loaded intel: 211 machine locations 14557 | -6/Factory | Loaded intel: 19 terminal locations 14558 | -6/Factory | Loaded intel: 4 garrison access locations 14813 | -6/Factory | Lost 4 parts (1p1u2w) 14898 | -6/Factory | Fabricated Adv. Terrain Scanner? 14991 | -6/Factory | Intercept squad dispatched 15002 | -6/Factory | Spotted Tracker 15020 | -6/Factory | Core integrity fell below 50% 15025 | -6/Factory | Self-destructed Last Messages --------------- 15014_ Adv. Melee Analysis Suite destroyed. 15014_ Mic. Nuclear Core destroyed. 15014_ Aerolev Unit destroyed. 15014_ Cld. Airjet destroyed. 15015_ Imp. Gravmag System destroyed. 15015_ Dropped Imp. Energy Well. 15015_ Proton Cannon destroyed. 15016_ Extracted 52 energy. 15017_ Extracted 19 energy. 15018_ Extracted 69 energy. 15019_ Proton Missile Launcher destroyed. 15019_ Lrn. Sensor Array destroyed. 15019_ K-01 Serf collects debris. 15020_ Extracted 15 energy. 15020_ U-05 Engineer builds a Wall. 15020_ U-05 Engineer lays Concrete. 15022_ G-50 Soldier destroyed. 15023_ ALERT: Construction progress impeded, dispatching reinforcements to local area. 15024_ Lrn. Missile Launcher destroyed. Map ----- +----------------------------------------------------+ | ??????????????????????????????????####???""""????" | | ?????????????????????????????? ?? #??""""????" | | ?????????????""??""??????????# ?? #??????????? | | ?????????????""??""??????????#! """ #??????????? | | ?????????????"""?"""?????????# """ #??????????? | | ?????????????"""?"""?????? ?# """ #??????????? | | ?????????????"""?"""?????? ?# #??????????? | | ?????????????????????????? ?# """ #??????????? | | ?????????????????????????# ?# """ #??????????? | | ?????????????????????????# ?# """ #??????????? | | ?????????????????????????# ?# #??????????? | | ?????????????????????????# ?# """ ############ | | ????????????????????????? ## """ # | | ?????????????????????????# ## """ # " | | ?????????????????????????# ## # "" | | ??????????????????""?????# ## # | | ?????????????""???""?????# ## # "" | | ?????????????""???""?????# ## "T" # " | | ?????????????"""???T?????# ## """ # """"""" | | ?????????????"""??""?????# ########### """"""" | | ?????????????"""??""?????# ##????????# """"""" | | ??????????????????""?????# #?????????# """"""" | | ?????????????????????????# #?????????# | | ????????#####+############ #?????????#/ | | ???????? #?????????# g | | ??????? u @ #?????????######+##### | | ????????? A ^ """ls #??#####???????#A####? | | ????????????# F ? ????????# ## #? | | ????????????# w """ #???????# ##### | | ????????????# g = """ #???????#k## | | ????????????# """ #???????# ## | | ????????????# g k #???????# ## | | ??"""???????# g g #???????# ## | | ??"""???????# %g ############# ## | | ??"""???????# ! =%u ## # | | ????????????# ! % u # | | ????????????# ^ i uu u # | | ????????????###### ^ !!! ####### # | | ?????????????????# !!! # # # | | ??????????######## !! # # + | | ?????? # # # | | ??????????# #### + # #### | | ?????????????????######+#### # # #??? | | ?????????????????# # = # # #??? | | ?????????????????# # *%/ # !! # #?"? | | ?^???????????????# + ! # !! # #?"? | | ?????????????????# # # ! # #?"? | | ?????????????????# ## ######" # #?"? | | ?????????????????# ## #????## # #?"? | | ?????????????????# ## #?????# " #?"? | +----------------------------------------------------+ Best States ------------- Heat Dissipation 45 Energy Generation 28 Energy Capacity 340 Matter Stores 300 Matter Capacity 300 Sight Range 16 Robot Scan Range 20 Terrain Scan Range 20 Terrain Scan Density 210 EM Shielding 3 Armor Coverage 600 Propulsion Shielding 66 Evasion (%) 56 Melee Accuracy 8 Recoil Reduction 3 Offensive Hacking 10 Defensive Hacking 10 Item Schematics ----------------- Cmb. Airjet | -8/Materials | Scanalyzed Hacking Suite | -8/Materials | Scanalyzed Imp. Propulsion Shielding | -8/Materials | Hacked Hvy. Armor Plating | -8/Materials | Scanalyzed Hrd. Medium Armor Plating | -8/Materials | Scanalyzed Imp. Weapon Shielding | -8/Materials | Scanalyzed Adv. Terrain Scanner | -8/Materials | Scanalyzed System Shield | -8/Materials | Scanalyzed Aerolev Unit | -8/Materials | Scanalyzed Lrn. Sensor Array | -7/Factory | Hacked Imp. Hacking Suite | -7/Factory | Hacked Adv. Melee Analysis Suite | -7/Factory | Hacked System Backup Module | -7/Factory | Hacked Tactical Coordination Suite | -7/Data Miner | Free Exp. Targeting Computer | -7/Data Miner | Free Exp. Sensor Array | -7/Data Miner | Free Triangulator | -7/Data Miner | Free Exp. Flexi-carbon Leg | -7/Data Miner | Free Lgt. Regenerative Plating | -7/Data Miner | Free Combat Drone Bay | -7/Data Miner | Free Adv. Armor Integrity Analyzer | -6/Factory | Hacked Robot Schematics ------------------ M-13 Machinist | -10/Materials | Hacked H-55 Commando | -8/Materials | Hacked I-36 Angel | -7/Data Miner | Free X-72 Disruptor | -7/Data Miner | Free G-50 Soldier | -7/Data Miner | Free S-27 Virus | -7/Data Miner | Free P-60 Hacker | -6/Factory | Hacked Fabricated ------------ Imp. Dynamic Insulation System | x2 | -7/Factory | Preloaded Lrn. Sensor Array | x1 | -7/Factory Adv. Melee Analysis Suite | x1 | -7/Factory Adv. Terrain Scanner | x2 | -6/Factory Alien Tech Used ----------------- None Achievements -------------- None Challenges ------------ None Game ------ Seed NeutrinoSalvageThrusters Manual? 0 Play Time 02:10:28 Cumulative 453.5 hours Start 2020.09.06 @ 00:27:25 End 2020.09.06 @ 02:38:56 Sessions 1 Manual Loads 0 Difficulty Rogue Special Mode None Game No. 303 Rogue 303 Adventurer 0 Explorer 0 Win Type - Total 4 Types 4/0/0/0/0/0/0 Lore% 86 Gallery% 87 Achievement% 66 Wizard Run 0 Options --------- ASCII 0 Keyboard 0 Movement Mouse Keybinds 1 Fullscreen 2 Font 24/Smallcaps Map View 76x50 Tactical HUD 1 Map Filters NONE Filters NONE Steam 1 RUN: 42ebb58a-c1e8-4bed-a852-9d2f4254efb0